Cogmind - Beta 13 @@@ ROGUE MODE // 2024.04.16 @ 17:03:38 Player: Lunace Result: Self-destructed Performance ------------- Evolutions (2) 1000 Regions Visited (3) 600 Robots Destroyed (28) 140 Value Destroyed (682) 682 Prototype IDs (0) 0 Alien Tech Used (0) 0 Bonus (35) 35 TOTAL SCORE: 2457 Bonus ------- High Alert Combat Kills 35 Cogmind --------- Core Integrity 507/550 Matter 3/300 Energy 24/160 System Corruption 0% Temperature Cool (-100) Movement Walking (120) Location -8/Materials Parts ------- > --- POWER (1) -------- Light Nuclear Core > --- PROPULSION (3) --- Aluminum Leg Aluminum Leg Carbon-fiber Leg > --- UTILITY (5) ------ Cryofiber Web Medium Storage Unit Structural Scanner Shield Generator > --- WEAPON (2) ------- Autogun Autogun > --- INVENTORY (10) --- Improved Sensor Array Improved Terrain Scanner Hacking Suite Autogun Autogun Rocket Launcher Rocket Launcher Rocket Launcher Improved Grenade Launcher Heavy Flail Peak State ------------ > --- POWER ------------ Light Nuclear Core > --- PROPULSION ------- Aluminum Leg Aluminum Leg Carbon-fiber Leg > --- UTILITY ---------- Cryofiber Web Medium Storage Unit Structural Scanner Shield Generator > --- WEAPON ----------- Autogun Heavy Flail > --- INVENTORY -------- Improved Sensor Array Improved Terrain Scanner Autogun Autogun Autogun Rocket Launcher Rocket Launcher Rocket Launcher Improved Grenade Launcher [Rating: 22] Favorites ----------- Power Light Nuclear Core Engine Ion Engine Power Core Light Nuclear Core Propulsion Aluminum Leg Leg Aluminum Leg Utility Small Storage Unit Device Structural Scanner Storage Small Storage Unit Processor Signal Interpreter Weapon Autogun Ballistic Gun Autogun Launcher Improved Grenade Launcher Impact Weapon Heavy Flail Build | -11 -10 -9 -8 ------- Run | Yrd Mat Mat Mat Slots Evolved 4 | . . 2 2 Power . | . . . . Propulsion 1 | . . . 1 Utility 3 | . . 2 1 Weapon . | . . . . Parts Attached 34 | 6 17 3 8 Power 5 | 2 3 . . Engine 4 | 2 2 . . Core 1 | . 1 . . Reactor . | . . . . Propulsion 6 | 1 4 . 1 Treads . | . . . . Leg 6 | 1 4 . 1 Wheel . | . . . . Hover . | . . . . Flight . | . . . . Utility 10 | 1 5 3 1 Device 5 | . 2 3 . Storage 4 | 1 2 . 1 Processor 1 | . 1 . . Hackware . | . . . . Protection . | . . . . Artifact . | . . . . Weapon 13 | 2 5 . 6 Energy Gun . | . . . . Energy Cannon . | . . . . Ballistic Gun 9 | 2 5 . 2 Ballistic Cannon . | . . . . Launcher 3 | . . . 3 Special Weapon . | . . . . Impact Weapon 1 | . . . 1 Slashing Weapon . | . . . . Piercing Weapon . | . . . . Special Melee Weapon . | . . . . Unidentified Prototypes . | . . . . Parts Lost 1 | . 1 . . Power . | . . . . Propulsion . | . . . . Utility . | . . . . Weapon 1 | . 1 . . Highest Loss Streak 1 | . 1 . . To Critical Strikes . | . . . . Average Slot Usage (%) 90 | . 89 96 89 Engine 3 | . 7 . . Core 8 | . 6 11 9 Leg 24 | . 24 22 26 Device 17 | . 6 30 27 Storage 11 | . 14 11 9 Processor 1 | . 3 . . Ballistic Gun 21 | . 25 22 13 Launcher 1 | . . . 3 Naked Turns . | . . . . Heaviest Build 28 | 13 17 20 28 Greatest Support 35 | 10 20 20 35 Greatest Overweight (x) 4 | 1 4 . . Average Overweight (x) . | . . . . Largest Inventory Capacity 10 | 8 10 8 10 Average Capacity 8 | 7 8 8 9 Most Carried 10 | 3 9 8 10 Average Carried 6 | 2 5 8 8 Final Capacity 10 | 8 8 8 10 Final Carried 10 | 3 8 8 10 Class Distribution -------------------- 100% | Mutant Dominant Class ---------------- Mutant | -10/Materials Mutant | -9/Materials Mutant | -8/Materials Resources | -11 -10 -9 -8 ----------- Run | Yrd Mat Mat Mat Matter Collected 808 | 272 253 207 76 Remotely . | . . . . Salvage Created 705 | 87 224 260 134 Parts 38 | 2 17 7 12 Haulers Intercepted 1 | . . 1 . Recyclers Shooed . | . . . . Parts Field Recycled . | . . . . Retrieved Matter . | . . . . Parts Self-Destructed . | . . . . Prevented . | . . . . Kills | -11 -10 -9 -8 ------- Run | Yrd Mat Mat Mat Combat Hostiles Destroyed 19 | . 4 5 10 Guns 9 | . 4 5 . AOE 10 | . . . 10 Classes Destroyed 8 | 1 2 3 2 Worker 2 | . . 1 1 Hauler 1 | . . 1 . Recycler 1 | 1 . . . Operator 2 | . . . 2 Watcher 3 | . 2 . 1 Swarmer 7 | . . . 7 Grunt 11 | . 4 4 3 Brawler 1 | . . 1 . Best Kill Streak 10 | 1 3 5 10 Combat Bots Only 7 | . 2 4 7 Max Kills in Single Turn 3 | 1 1 2 3 Gunslinging . | . . . . Exploded 3 | . . . 3 Melee . | . . . . Uniques/NPCs Destroyed . | . . . . Combat | -11 -10 -9 -8 -------- Run | Yrd Mat Mat Mat Hostile Shots Fired 101 | . 25 25 51 Missed 37 | . 8 10 19 Damage Taken 754 | . 262 118 374 Core 94 | . 30 21 43 Absorbed by Shields 165 | . . 45 120 Core Remaining (%) 94 | 100 88 94 . Volleys Fired 69 | 3 24 23 19 Largest 2 | 2 2 2 2 Hottest 66 | 40 46 46 66 Shots Fired 124 | 6 44 46 28 Gun 102 | 6 44 46 6 Cannon . | . . . . Launcher 22 | . . . 22 Special . | . . . . Kinetic 102 | 6 44 46 6 Thermal . | . . . . Explosive 22 | . . . 22 Electromagnetic . | . . . . Robot Hit Streak 9 | 1 5 9 5 Robot Miss Streak 4 | 2 2 4 2 Penetration Max . | . . . . Secondary Targets 2 | . 1 1 . Max Gunslinging Chain 1 | . 1 1 . Shots Hit Robots 78 | 2 29 31 16 Core Hits 44 | 1 13 10 20 Critical Kills . | . . . . Critical Parts Destroyed 1 | . . . 1 Critical Strikes 1 | . . . 1 Smash 1 | . . . 1 Melee Attacks 1 | . . . 1 Impact 1 | . . . 1 Slashing . | . . . . Piercing . | . . . . Sneak Attacks 1 | . . . 1 Combat Hostiles . | . . . . Follow-up Attacks . | . . . . Damage Inflicted 2481 | 22 317 484 1658 Guns 889 | 22 317 484 66 Cannons . | . . . . Explosions 1466 | . . . 1466 Melee 126 | . . . 126 Ramming . | . . . . Kinetic 889 | 22 317 484 66 Thermal . | . . . . Explosive 1466 | . . . 1466 Electromagnetic . | . . . . Impact 126 | . . . 126 Slashing . | . . . . Piercing . | . . . . Highest Corruption . | . . . . Average Corruption . | . . . . Corruption Purged . | . . . . Corruption Blocked . | . . . . Overload Shots . | . . . . Overflow Damage 252 | . . . 252 Projectiles . | . . . . Explosions 126 | . . . 126 Melee 126 | . . . 126 Knockbacks . | . . . . Impact . | . . . . Kinetic . | . . . . Secondary . | . . . . Self-Inflicted Damage 124 | . . . 124 Shots 3 | . . . 3 Rammed . | . . . . Targets Rammed . | . . . . Kicked . | . . . . Crushed . | . . . . Highest Temperature 9 | . 9 . . Average Temperature 9 | . 9 . . Received Heat Transfer 267 | . 150 60 57 Siege Activations . | . . . . Robots Corrupted . | . . . . Combat Hostiles . | . . . . Parts Fried . | . . . . Impact Corruptions 4 | . . . 4 Robots Melted . | . . . . Combat Hostiles . | . . . . Parts Melted . | . . . . Heat Transferred . | . . . . Parts Sabotaged . | . . . . Parts Stolen . | . . . . Parts Stripped . | . . . . Power Chain Reactions . | . . . . Alert | -11 -10 -9 -8 ------- Run | Yrd Mat Mat Mat Peak Influence 568 | 5 175 250 568 Initial 105 | . 3 12 105 Average 100 | 1 66 89 194 Maximum Alert Level 2 | . . 1 2 Low Security (%) 86 | 100 100 81 62 Level 1 10 | . . 18 25 Level 2 3 | . . . 11 Level 3 . | . . . . Level 4 . | . . . . Level 5 . | . . . . High Security . | . . . . Max Security . | . . . . Squads Dispatched 5 | . 2 1 2 Investigation 2 | . 1 1 . Extermination . | . . . . Reinforcement 2 | . 1 . 1 Assault . | . . . . Garrison 1 | . . . 1 Intercept . | . . . . Searches Triggered . | . . . . Construction Impeded . | . . . . Haulers Reinforced . | . . . . Active Scanning Responses . | . . . . Cargo Convoy Interrupts . | . . . . Stealth | -11 -10 -9 -8 --------- Run | Yrd Mat Mat Mat Distress Signals 4 | . 2 . 2 Communications Jammed . | . . . . Distress Signals . | . . . . Times Spotted 34 | . 9 7 18 Peak Tracking Total 7 | . 4 6 7 Tactical Retreats 3 | . . 2 1 Traps | -11 -10 -9 -8 ------- Run | Yrd Mat Mat Mat Traps Triggered 2 | . 2 . . Indirectly . | . . . . Trap Hack Attempts . | . . . . Triggered . | . . . . Disarmed . | . . . . Reprogrammed . | . . . . Reused . | . . . . Traps Extracted . | . . . . Installed . | . . . . Triggered . | . . . . Machines | -11 -10 -9 -8 ---------- Run | Yrd Mat Mat Mat Machines Disabled 3 | . . . 3 Max in Single Turn 1 | . . . 1 Machines Repaired . | . . . . Machines Dismantled . | . . . . Machines Sabotaged . | . . . . Overloaded Fab Kills . | . . . . Hacking | -11 -10 -9 -8 --------- Run | Yrd Mat Mat Mat Machines Accessed 15 | . 7 4 4 Terminals 13 | . 6 3 4 Fabricators . | . . . . Repair Stations . | . . . . Recycling Units 1 | . 1 . . Scanalyzers 1 | . . 1 . Garrison Access . | . . . . Total Hacks 40 | . 24 7 9 Successful 14 | . 7 4 3 Failed 26 | . 17 3 6 Catastrophic 7 | . 4 1 2 Database Lockouts . | . . . . Manual 35 | . 19 7 9 Terminals 34 | . 19 6 9 Fabricators . | . . . . Repair Stations . | . . . . Recycling Units 5 | . 5 . . Scanalyzers 1 | . . 1 . Garrison Access . | . . . . Terminal Hacks 6 | . 3 1 2 Robot Analysis 1 | . . . 1 Branch Access Points 1 | . 1 . . Terminal Index 3 | . 1 1 1 Recycling Unit Index 1 | . 1 . . Fabricator Hacks . | . . . . Repair Station Hacks . | . . . . Recycling Unit Hacks . | . . . . Scanalyzer . | . . . . Garrison Access Hacks . | . . . . Unauthorized Hacks 8 | . 4 3 1 Terminals 4 | . 1 2 1 Assimilate 1 | . . 1 . Operators 3 | . 1 1 1 Fabricators . | . . . . Repair Stations . | . . . . Recycling Units 3 | . 3 . . Monitor 1 | . 1 . . Recyclers 1 | . 1 . . Tunnel 1 | . 1 . . Scanalyzers 1 | . . 1 . Extract 1 | . . 1 . Garrison Access . | . . . . Data Cores Recovered 1 | . . . 1 Used . | . . . . Hacking Detections 11 | . 6 2 3 Full Trace Events 1 | . 1 . . Feedback Events . | . . . . Feedback Blocked . | . . . . Robot Schematics Acquired . | . . . . Robots Built . | . . . . Authchips . | . . . . Time . | . . . . Total Robot Build Rating . | . . . . Part Schematics Acquired 2 | . . 2 . Parts Built . | . . . . Authchips . | . . . . Time . | . . . . Total Part Build Rating . | . . . . Parts Repaired . | . . . . Time . | . . . . Parts Recycled . | . . . . Recycled Matter . | . . . . Retrieved Matter . | . . . . Retrieved Components . | . . . . Parts Scanalyzed . | . . . . Part Schematics Acquired . | . . . . Parts Damaged . | . . . . Bothacking | -11 -10 -9 -8 ------------ Run | Yrd Mat Mat Mat Used RIF Installer . | . . . . Robots Hacked . | . . . . Non-combat . | . . . . Combat . | . . . . Robot Hacks Applied . | . . . . Relay Couplers Released . | . . . . Fabnet Peak Effective % . | . . . . Robots Rewired . | . . . . Allies Hacked . | . . . . Hacks Repelled . | . . . . Allies | -11 -10 -9 -8 -------- Run | Yrd Mat Mat Mat Total Allies . | . . . . Largest Group . | . . . . Highest-Rated Group . | . . . . Highest-Rated Ally . | . . . . Total Orders . | . . . . Ally Attacks . | . . . . Total Damage . | . . . . Kills . | . . . . Allies Corrupted . | . . . . Allies Melted . | . . . . Intel | -11 -10 -9 -8 ------- Run | Yrd Mat Mat Mat Robot Analysis Total 1 | . . . 1 Derelict Logs Recovered . | . . . . Drone Launches . | . . . . Drone Recoveries . | . . . . Exploration | -11 -10 -9 -8 ------------- Run | Yrd Mat Mat Mat Turns Passed 1338 | 96 621 259 362 Spaces Moved 774 | 48 342 157 227 Core 16 | 3 13 . . Treads . | . . . . Legs 758 | 45 329 157 227 Wheels . | . . . . Hover . | . . . . Flight . | . . . . Fastest Speed 50 | 50 100 120 120 Average Speed 127 | 162 131 120 120 Slowest Speed 250 | 190 250 120 120 Overloaded Moves . | . . . . Propulsion Burnouts . | . . . . Robots Hopped . | . . . . Cave-ins Triggered . | . . . . Exploration Rate (%) 27 | 4 52 18 35 Regions Visited 3 Branch Regions . Pre-discovered Areas 1 | . 1 . . Known Exits Taken . | . . . . Unknown Exits Taken 3 | 1 1 1 . Scrap Searched . | . . . . Spaces Dug . | . . . . Terrain Destroyed 122 | . . . 122 Melee . | . . . . Projectile . | . . . . AOE 122 | . . . 122 Terrain Rammed . | . . . . Walls Destroyed . | . . . . Machines Disabled . | . . . . Actions | -11 -10 -9 -8 --------- Run | Yrd Mat Mat Mat Total 1010 | 58 476 190 286 Wait 99 | . 67 7 25 Move 771 | 47 341 156 227 Hop . | . . . . Pick Up 21 | 2 15 . 4 Fast Attach 15 | 5 6 3 1 Attach 7 | . 6 . 1 Detach 1 | . 1 . . Swap 12 | 1 5 . 6 Drop 14 | . 11 1 2 Fire 69 | 3 24 23 19 Melee 1 | . . . 1 Ram . | . . . . Kick . | . . . . Crush . | . . . . Escape Stasis . | . . . . Rewire . | . . . . Trap . | . . . . Miscellaneous . | . . . . Route ------- -11/Scrapyard -10/Materials (discovered 2 exits: *Mat / Min) -9/Materials -8/Materials History --------- Turn | Location | Event 10 | -11/Scrapyard | Discovered new exit (range 15) 97 | -11/Scrapyard | Entered Materials 300 | -10/Materials | Build established: Mutant 519 | -10/Materials | Identified exit to Mines 597 | -10/Materials | Derelicts attacked the area 699 | -10/Materials | Discovered new exit (range 15) 718 | -10/Materials | Entered another Materials area 718 | -9/Materials | Evolved 2 slots: Utility x2 966 | -9/Materials | Discovered new exit (range 9) 977 | -9/Materials | Entered another Materials area 977 | -8/Materials | Evolved 2 slots: Propulsion x1, Utility x1 1315 | -8/Materials | Garrison activated, responded to threat 1339 | -8/Materials | Self-destructed Last Messages --------------- 01325_ The unstable cave ceiling collapses. 01326_ U-05 Engineer lays Concrete. 01327_ K-01 Serf collects debris. 01328_ U-05 Engineer lays Concrete. 01329_ U-05 Engineer builds a Wall. 01329_ U-05 Engineer lays Concrete. 01332_ K-01 Serf collects debris. 01332_ U-05 Engineer lays Concrete. 01333_ The unstable cave ceiling collapses. 01333_ W-25 Informer sends out distress signal. 01334_ U-05 Engineer lays Concrete. 01334_ U-05 Engineer builds a Wall. 01335_ The unstable cave ceiling collapses. 01335_ U-05 Engineer lays Concrete. 01335_ U-05 Engineer builds a Wall. 01336_ U-05 Engineer lays Concrete. 01337_ U-05 Engineer builds a Wall. 01337_ U-05 Engineer lays Concrete. 01338_ U-05 Engineer builds a Wall. 01338_ U-05 Engineer lays Concrete. Map ----- +----------------------------------------------------+ | ?????????????????????????????????????????????????? | | ?????????????????????????????????????????????????? | | ?????????????????????????????????????????????????? | | ?????????????????????????????????????????????????? | | ?????????????????????????????????????????????????? | | ?????????????????????????????????????????????????? | | ?????????????????????????????????????????????????? | | ?????????????????????????????????????????????????? | | ?????????????????????????????????????????????????? | | ?????????????????????????????????????????????????? | | ?????????????????????????????????????????????????? | | ?????????????????????????????????????????????????? | | ?????????????????? ??????????????????????????????? | | ?????????????? # ?????????????????????????????? | | ??????????????% ???????????????????????????? | | ??????????????r #???????????????????????????? | | ????????????? #???????????????????????????? | | ????????????? ???????????????????????????? | | ???????????? ???????????????????????????? | | ???????????? k Y ######?????############???? | | ???????????? #########??############???? | | ????????????# #########[ ##???? | | ????????????## ? # # ######### ##???? | | ???????????????? # #u # ##???? | | ????????????????##T# " # ##???? | | ?????????? @ " + ##???? | | ?????????? uu # ###### | | ?????????? #### # ###### | | ??????????########## ##### ### / | | ??????????########## # # # ###### | | ??????????????????## # ####+########## | | ??????????????????## w# % #### ## | | ??????????????????## ### # #### ## """ | | ????????????????? ## ## #### ## """ | | ????????????????? # Y? # """ ###### ## """ | | ????????????????? # ? # """ ###### ## | | ????????????????? + ?? + """ [##??## ## " " | | ????????????????? # ?? # ? ##??## ## ! "T" | | ????????????????? # ??? # ??" ##??## ## """ | | ????????????????? ##??? # ??" ##??## ## | | ??????????????????????? # ??" ##??## ###### ### | | ????????????????????????????? ????## ### % ## | | ?????????????????????????????????????## | | ?????????????????????????????????????####### % ## | | ?????????????????????????????????????####### # # | | ????????????????????????????????????????## % | | ????????????????????????????????????????## | | ????????????????????????????????????????## | | ???????????????????????????????????????? + ! | | ????????????????????????????????????????########## | +----------------------------------------------------+ Best States ------------- Heat Dissipation 35 Energy Generation 14 Energy Capacity 250 Matter Stores 300 Matter Capacity 300 Sight Range 16 Terrain Scan Density 10 Base Temperature (-) 100 Evasion (%) 55 Item Schematics ----------------- Mni. Grenade Launcher | -9/Materials | Extracted Imp. Treads | -9/Materials | Extracted Robot Schematics ------------------ None Fabricated ------------ Nothing Alien Tech Used ----------------- None Achievements -------------- None Challenges ------------ None Game ------ Seed CloakingDiametricCorpse Manual? 0 Play Time 00:14:15 Cumulative 77.7 hours Start 2024.04.16 @ 16:47:50 End 2024.04.16 @ 17:03:38 Sessions 1 Manual Loads 0 Difficulty Rogue Special Mode None Game No. 92 Rogue 87 Adventurer 5 Explorer 0 Win Type - Total 3 Types 2/0/0/1/0/0/0/0/0 Lore% 37 Gallery% 56 Achievement% 44 Wizard Run 0 Options --------- Layout 1 ASCII 0 Keyboard 0 Movement Mouse Keybinds 0 Fullscreen 1 Font 24/Terminus Map View 50x35 Zoom Use 0% Tactical HUD 1 Map Filters NONE Filters NONE Steam 1 RUN: 31ef3d50-1ecb-4072-be17-7155dc49cfec